fUST/lending_fUST_20250108
["ID","MTS","AMOUNT","RATE_DAILY","PERIOD"]
[348057525,1736286646330,-500.0,0.00021916,2]
[348057526,1736286646341,-500.0,0.00021916,2]
[348057527,1736286646350,-1200.0,0.00022978,2]
[348057528,1736286646359,-15061.56046741,0.00022978,10]
[348057529,1736286646371,-2200.40577024,0.00022978,10]
[348057530,1736286646389,-1174.5,0.00022978,10]
[348057531,1736286646401,-60908.40801747,0.00022978,10]
[348057532,1736286646412,-23943.999962,0.00022978,10]
[348057533,1736286646423,-5358.12999999,0.00022978,10]
[348057723,1736287592100,165.702949,0.00013973,2]
[348057951,1736287838064,-608.90423466,0.000189,2]
[348057953,1736287838074,-302.57643833,0.00019,2]
[348057955,1736287838084,-301.33644966,0.00019,2]
[348057957,1736287838094,-618.03,0.00019178,2]
[348057959,1736287838103,-500.0,0.00019178,2]
[348057961,1736287838113,-580.2,0.00019178,2]
[348057963,1736287838122,-300.0,0.00019279,2]
[348057965,1736287838132,-8599.5246008,0.0001928,2]
[348057967,1736287838142,-163.772567,0.00019371,2]
[348057969,1736287838153,-582.41,0.000194,2]
[348057971,1736287838163,-618.03,0.00019452,3]
[348057973,1736287838176,-500.0,0.00019452,2]
[348057975,1736287838185,-580.2,0.00019452,3]
[348057978,1736287838195,-188.0,0.00019724,2]
[348057981,1736287838204,-500.0,0.00019724,3]
[348057983,1736287838213,-500.0,0.00019724,3]
[348057985,1736287838224,-500.0,0.00019724,3]
[348057987,1736287838233,-500.0,0.00019724,3]
[348057989,1736287838242,-501.97550749,0.00019724,3]
[348057991,1736287838252,-500.0,0.00019724,3]
[348057993,1736287838263,-489.49357555,0.00019724,3]
[348057995,1736287838272,-500.0,0.00019724,3]
[348057997,1736287838282,-618.03,0.00019726,3]
[348057999,1736287838292,-500.0,0.00019726,2]
[348058001,1736287838301,-580.2,0.00019726,3]
[348058003,1736287838311,-500.0,0.00019998,3]
[348058005,1736287838321,-517.08726446,0.00019998,3]
[348058007,1736287838330,-500.0,0.00019999,3]
[348058009,1736287838340,-618.03,0.0002,3]
[348058011,1736287838349,-4453.0,0.0002,2]
[348058013,1736287838359,-500.0,0.0002,2]
[348058015,1736287838369,-580.2,0.0002,3]
[348058017,1736287838379,-500.0,0.00020272,3]
[348058019,1736287838388,-500.0,0.00020272,3]
[348058021,1736287838397,-500.0,0.00020272,3]
[348058023,1736287838407,-500.0,0.00020272,3]
[348058025,1736287838417,-1741.5,0.00020272,3]
[348058027,1736287838426,-548.2950363,0.00020273,3]
[348058029,1736287838438,-69.7349637,0.00020273,3]
[348058031,1736287838448,-500.0,0.00020273,2]
[348058033,1736287838457,-500.0,0.00020273,3]
[348058035,1736287838466,-359.27245725,0.00020273,3]
[348058037,1736287838478,-220.92754275,0.00020273,3]
[348058039,1736287838487,-554.60223537,0.00020447,2]
[348058041,1736287838497,-165.702949,0.00020447,2]
[348058043,1736287838506,-500.0,0.00020546,3]
[348058045,1736287838515,-1741.5,0.00020546,3]
[348058047,1736287838525,-618.03,0.00020547,3]
[348058048,1736287838534,-500.0,0.00020547,2]
[348058049,1736287838544,-500.0,0.00020547,3]
[348058050,1736287838563,-580.2,0.00020547,3]
[348058051,1736287838575,-554.60223531,0.00020795,2]
[348058052,1736287838585,-500.0,0.0002082,3]
[348058053,1736287838594,-500.0,0.0002082,3]
[348058054,1736287838604,-500.0,0.0002082,3]
[348058055,1736287838613,-500.0,0.0002082,3]
[348058056,1736287838625,-145.00363019,0.0002082,3]
[348058466,1736287843109,-1596.49636981,0.0002082,3]
[348058469,1736287843120,-618.03,0.00020821,3]
[348058471,1736287843131,-500.0,0.00020821,3]
[348058473,1736287843140,-580.2,0.00020821,3]
[348058475,1736287843149,-150.0,0.00021,2]
[348058477,1736287843159,-420.0,0.00021008,2]
[348058479,1736287843168,-500.0,0.00021094,3]
[348058481,1736287843177,-1741.5,0.00021094,3]
[348058483,1736287843186,-618.03,0.00021095,3]
[348058485,1736287843195,-500.0,0.00021095,3]
[348058487,1736287843205,-580.2,0.00021095,3]
[348058489,1736287843214,-554.60223531,0.00021142,2]
[348058491,1736287843223,-150.0,0.00021245,2]
[348058493,1736287843232,-1497.85539491,0.00021245,2]
[348058495,1736287843248,-582.14460509,0.00021245,2]
[348058497,1736287843257,-627.928,0.00021245,2]
[348058499,1736287843266,-2319.0,0.00021245,2]
[348058501,1736287843275,-545.77405841,0.00021368,3]
[348058503,1736287843285,-1741.5,0.00021368,3]
[348058505,1736287843294,-618.03,0.00021369,3]
[348058507,1736287843304,-161.159,0.00021369,2]
[348058510,1736287843314,-500.0,0.00021369,3]
[348058511,1736287843323,-580.2,0.00021369,3]
[348058513,1736287843333,-554.60223531,0.0002149,2]
[348058516,1736287843342,-1849.66210128,0.000216,4]
[348058518,1736287843353,-501.76107958,0.000216,4]
[348058520,1736287843364,-354.64968052,0.000216,4]
[348058649,1736287846859,-524.17,0.000194,2]
[348058650,1736287846869,-1746.92713862,0.000216,4]
[348058651,1736287846879,-1741.5,0.00021642,3]
[348058652,1736287846889,-618.03,0.00021643,3]
[348058653,1736287846898,-576.03010864,0.00021643,3]
[348058654,1736287846908,-580.2,0.00021643,3]
[348058655,1736287846917,-554.60223531,0.00021838,2]
[348058656,1736287846926,-572.87,0.0002184,2]
[348058657,1736287846936,-1200.0,0.00021894,2]
[348058658,1736287846946,-1741.5,0.00021916,3]
[348058659,1736287846955,-618.03,0.00021917,3]
[348058660,1736287846964,-580.2,0.00021917,3]
[348058661,1736287846974,-423.0,0.00022,2]
[348058662,1736287846984,-155.1178407,0.00022164,2]
[348058663,1736287846994,-568.6059082,0.00022164,2]
[348058664,1736287847003,-153.7491537,0.00022164,2]
[348058665,1736287847016,-153.5824176,0.00022164,2]
[348058666,1736287847026,-554.60223531,0.00022186,2]
[348058667,1736287847035,-1741.5,0.0002219,3]
[348058668,1736287847044,-160.44682479,0.0002219,2]
[348058669,1736287847054,-618.03,0.00022191,3]
[348058670,1736287847064,-580.2,0.00022191,3]
[348058671,1736287847074,-619.0,0.000224,2]
[348058673,1736287847083,-1741.5,0.00022464,3]
[348058675,1736287847093,-618.03,0.00022465,3]
[348058677,1736287847102,-580.2,0.00022465,3]
[348058679,1736287847112,-554.60223531,0.00022533,2]
[348058681,1736287847122,-10058.72106001,0.00022566,2]
[348058683,1736287847133,-14546.87910148,0.00022637,2]
[348058685,1736287847142,-300.14790039,0.00022716,2]
[348058687,1736287847152,-227.17104749,0.00022716,2]
[348058689,1736287847161,-266.20364078,0.00022716,2]
[348058691,1736287847171,-500.0,0.00022716,2]
[348058693,1736287847180,-288.06682064,0.00022716,2]
[348058695,1736287847190,-500.0,0.00022716,2]
[348058697,1736287847200,-500.0,0.00022716,2]
[348058699,1736287847210,-650.80571118,0.00022716,2]
[348058701,1736287847219,-14546.87910145,0.00022717,2]
[348058703,1736287847229,-1741.5,0.00022738,3]
[348058705,1736287847239,-618.03,0.00022739,3]
[348058707,1736287847248,-580.2,0.00022739,3]
[348058708,1736287847257,-176.198965,0.00022757,2]
[348058710,1736287847267,-163.14484928,0.00022797,2]
[348058712,1736287847276,-14546.87910145,0.00022798,2]
[348058714,1736287847286,-153.0,0.0002287,2]
[348058716,1736287847295,-153.0,0.0002287,2]
[348058719,1736287847305,-153.0,0.0002287,2]
[348058721,1736287847315,-153.0,0.0002287,2]
[348058723,1736287847324,-153.0,0.0002287,2]
[348058725,1736287847333,-153.0,0.00022875,2]
[348058726,1736287847342,-153.0,0.00022875,2]
[348058728,1736287847351,-153.0,0.00022875,2]
[348058730,1736287847361,-153.0,0.00022875,2]
[348058732,1736287847370,-14546.87910145,0.00022878,2]
[348058734,1736287847379,-153.0,0.0002288,2]
[348058737,1736287847389,-153.0,0.0002288,2]
[348058739,1736287847400,-153.0,0.0002288,2]
[348058741,1736287847409,-153.0,0.0002288,2]
[348058743,1736287847419,-153.0,0.0002288,2]
[348058745,1736287847429,-554.60223531,0.00022881,2]
[348058747,1736287847438,-153.0,0.00022885,2]
[348058748,1736287847449,-153.0,0.00022885,2]
[348058750,1736287847458,-153.0,0.00022885,2]
[348058751,1736287847467,-153.0,0.00022885,2]
[348058753,1736287847479,-153.0,0.0002289,2]
[348058755,1736287847488,-153.0,0.0002289,2]
[348058756,1736287847498,-153.0,0.00022891,2]
[348058757,1736287847507,-153.0,0.00022891,2]
[348058758,1736287847516,-153.0,0.00022891,2]
[348058759,1736287847525,-587.0,0.00022893,2]
[348058760,1736287847534,-188.0,0.000229,2]
[348058761,1736287847544,-370.35301337,0.00022973,2]
[348058762,1736287847554,-500.86376776,0.00022973,2]
[348058763,1736287847564,-500.68607109,0.00022973,2]
[348058764,1736287847574,-500.0,0.00022973,2]
[348058765,1736287847584,-151.0,0.00022977,7]
[348058766,1736287847593,-151.0,0.00022977,7]
[348058767,1736287847602,-151.0,0.00022977,7]
[348058768,1736287847611,-151.0,0.00022977,7]
[348058769,1736287847621,-151.0,0.00022977,7]
[348058770,1736287847630,-151.0,0.00022977,7]
[348058771,1736287847639,-151.0,0.00022977,7]
[348058772,1736287847648,-151.0,0.00022977,7]
[348058773,1736287847657,-151.0,0.00022977,7]
[348058774,1736287847670,-151.0,0.00022977,7]
[348058775,1736287847680,-151.0,0.00022977,7]
[348058776,1736287847689,-151.0,0.00022977,7]
[348058777,1736287847698,-151.0,0.00022977,7]
[348058778,1736287847709,-197.100109,0.00022977,7]
[348058779,1736287847719,-151.0,0.00022977,7]
[348058780,1736287847730,-151.0,0.00022977,7]
[348058781,1736287847741,-151.0,0.00022977,7]
[348058782,1736287847752,-151.0,0.00022977,7]
[348058783,1736287847762,-151.0,0.00022977,7]
[348058784,1736287847771,-151.0,0.00022977,7]
[348058785,1736287847780,-151.0,0.00022977,7]
[348058786,1736287847790,-151.0,0.00022977,7]
[348058787,1736287847799,-151.0,0.00022977,7]
[348058788,1736287847808,-151.0,0.00022977,7]
[348058789,1736287847818,-151.0,0.00022977,7]
[348058790,1736287847828,-151.0,0.00022977,7]
[348058791,1736287847838,-151.0,0.00022977,7]
[348058792,1736287847847,-151.0,0.00022977,7]
[348058793,1736287847857,-151.0,0.00022977,7]
[348058794,1736287847866,-151.0,0.00022977,7]
[348058795,1736287847876,-151.0,0.00022977,7]
[348058796,1736287847885,-151.0,0.00022977,7]
[348058797,1736287847895,-177.216676,0.00022977,7]
[348058798,1736287847904,-151.0,0.00022977,7]
[348058799,1736287847913,-151.0,0.00022977,7]
[348058800,1736287847923,-151.0,0.00022977,7]
[348058801,1736287847933,-151.0,0.00022977,7]
[348058802,1736287847942,-151.0,0.00022977,7]
[348058803,1736287847951,-151.0,0.00022977,7]
[348058804,1736287847960,-151.0,0.00022977,7]
[348058805,1736287847970,-151.0,0.00022977,7]
[348058806,1736287847979,-151.0,0.00022977,7]
[348058807,1736287847988,-151.0,0.00022977,7]
[348058808,1736287847998,-151.0,0.00022977,7]
[348058809,1736287848007,-151.0,0.00022977,7]
[348058810,1736287848017,-151.0,0.00022977,7]
[348058811,1736287848026,-151.0,0.00022977,7]
[348058812,1736287848037,-151.0,0.00022977,7]
[348058813,1736287848046,-151.0,0.00022977,7]
[348058814,1736287848056,-151.0,0.00022977,7]
[348058815,1736287848066,-151.0,0.00022977,7]
[348058816,1736287848076,-153.061922,0.00022977,7]
[348058817,1736287848087,-151.0,0.00022978,7]
[348058818,1736287848097,-151.0,0.00022978,7]
[348058819,1736287848107,-200.303502,0.00022978,7]
[348058820,1736287848117,-200.303502,0.00022978,7]
[348058821,1736287848126,-200.303502,0.00022978,7]
[348058822,1736287848135,-200.303502,0.00022978,7]
[348058823,1736287848265,-200.303502,0.00022978,7]
[348058824,1736287848275,-200.303502,0.00022978,7]
[348058825,1736287848286,-200.303502,0.00022978,7]
[348058826,1736287848297,-200.303502,0.00022978,7]
[348058829,1736287848312,-200.303502,0.00022978,7]
[348058831,1736287848327,-200.303502,0.00022978,7]
[348058833,1736287848338,-200.303502,0.00022978,7]
[348058835,1736287848348,-200.303502,0.00022978,7]
[348058837,1736287848359,-200.303502,0.00022978,7]
[348058839,1736287848370,-200.303502,0.00022978,7]
[348058840,1736287848380,-200.303502,0.00022978,7]
[348058841,1736287848390,-200.303502,0.00022978,7]
[348058842,1736287848401,-200.303502,0.00022978,7]
[348058843,1736287848412,-200.303502,0.00022978,7]
[348058844,1736287848423,-200.303502,0.00022978,7]
[348058845,1736287848433,-200.303508,0.00022978,7]
[348058846,1736287848443,-151.0,0.00022978,7]
[348058847,1736287848454,-151.0,0.00022978,7]
[348058848,1736287848464,-151.0,0.00022978,7]
[348058850,1736287848474,-151.0,0.00022978,7]
[348058852,1736287848486,-151.0,0.00022978,7]
[348058854,1736287848496,-151.0,0.00022978,7]
[348058856,1736287848506,-151.0,0.00022978,7]
[348058858,1736287848516,-151.0,0.00022978,7]
[348058860,1736287848526,-151.0,0.00022978,7]
[348058862,1736287848536,-151.0,0.00022978,7]
[348058865,1736287848546,-151.0,0.00022978,7]
[348058867,1736287848556,-151.0,0.00022978,7]
[348058869,1736287848566,-151.0,0.00022978,7]
[348058871,1736287848576,-151.0,0.00022978,7]
[348058873,1736287848585,-151.0,0.00022978,7]
[348058875,1736287848594,-151.0,0.00022978,7]
[348058877,1736287848604,-151.0,0.00022978,7]
[348058879,1736287848614,-151.0,0.00022978,7]
[348058881,1736287848623,-151.0,0.00022978,7]
[348058883,1736287848633,-151.0,0.00022978,7]
[348058884,1736287848643,-151.0,0.00022978,7]
[348058886,1736287848653,-151.0,0.00022978,7]
[348058888,1736287848665,-151.0,0.00022978,7]
[348058890,1736287848675,-226.587084,0.00022978,7]
[348058892,1736287848684,-151.0,0.00022978,7]
[348058894,1736287848694,-151.0,0.00022978,7]
[348058896,1736287848704,-151.0,0.00022978,7]
[348058898,1736287848713,-151.0,0.00022978,7]
[348058900,1736287848723,-151.0,0.00022978,7]
[348058902,1736287848734,-151.0,0.00022978,7]
[348058904,1736287848743,-151.0,0.00022978,7]
[348058905,1736287848751,-151.0,0.00022978,7]
[348058908,1736287848760,-151.0,0.00022978,7]
[348058910,1736287848769,-151.0,0.00022978,7]
[348058912,1736287848777,-151.0,0.00022978,7]
[348058914,1736287848785,-151.0,0.00022978,7]
[348058916,1736287848795,-151.0,0.00022978,7]
[348058917,1736287848805,-271.128376,0.00022978,7]
[348058918,1736287848814,-163.063005,0.00022978,7]
[348058919,1736287848824,-163.063005,0.00022978,7]
[348058920,1736287848834,-163.063005,0.00022978,7]
[348058921,1736287848843,-151.0,0.00022978,7]
[348058922,1736287848853,-163.063005,0.00022978,7]
[348058923,1736287848863,-151.0,0.00022978,7]
[348058924,1736287848872,-163.063005,0.00022978,7]
[348058925,1736287848882,-151.0,0.00022978,7]
[348058926,1736287848892,-151.0,0.00022978,7]
[348058927,1736287848901,-163.063005,0.00022978,7]
[348058928,1736287848911,-151.0,0.00022978,7]
[348058929,1736287848920,-163.063005,0.00022978,7]
[348058930,1736287848929,-163.063005,0.00022978,7]
[348058931,1736287848939,-163.063005,0.00022978,7]
[348058932,1736287848949,-163.063005,0.00022978,7]
[348058933,1736287848959,-163.063005,0.00022978,7]
[348058934,1736287848968,-163.063005,0.00022978,7]
[348058935,1736287848979,-163.063005,0.00022978,7]
[348058936,1736287848989,-163.063005,0.00022978,7]
[348058937,1736287848999,-163.063005,0.00022978,7]
[348058938,1736287849009,-163.063005,0.00022978,7]
[348058939,1736287849018,-163.063005,0.00022978,7]
[348058940,1736287849028,-163.063005,0.00022978,7]
[348058941,1736287849038,-163.063005,0.00022978,7]
[348058942,1736287849048,-163.063007,0.00022978,7]
[348058943,1736287849058,-151.0,0.00022978,7]
[348058944,1736287849067,-151.0,0.00022978,7]
[348058945,1736287849077,-151.0,0.00022978,7]
[348058946,1736287849087,-151.0,0.00022978,7]
[348058947,1736287849097,-151.0,0.00022978,7]
[348058948,1736287849107,-151.0,0.00022978,7]
[348058949,1736287849117,-151.0,0.00022978,7]
[348058950,1736287849126,-151.0,0.00022978,7]
[348058951,1736287849136,-151.0,0.00022978,7]
[348058952,1736287849147,-151.0,0.00022978,7]
[348058953,1736287849156,-151.0,0.00022978,7]
[348058954,1736287849166,-151.0,0.00022978,7]
[348058955,1736287849176,-252.160299,0.00022978,7]
[348058956,1736287849186,-156.767611,0.00022978,7]
[348058957,1736287849196,-156.767611,0.00022978,7]
[348058958,1736287849205,-156.767611,0.00022978,7]
[348058959,1736287849215,-156.767611,0.00022978,7]
[348058960,1736287849224,-156.767611,0.00022978,7]
[348058961,1736287849234,-156.767611,0.00022978,7]
[348058962,1736287849244,-156.767611,0.00022978,7]
[348058963,1736287849254,-156.767611,0.00022978,7]
[348058964,1736287849263,-156.767611,0.00022978,7]
[348058965,1736287849273,-156.767611,0.00022978,7]
[348058966,1736287849282,-156.767611,0.00022978,7]
[348058967,1736287849291,-156.767611,0.00022978,7]
[348058968,1736287849301,-156.767611,0.00022978,7]
[348058969,1736287849312,-156.767611,0.00022978,7]
[348058970,1736287849322,-156.767611,0.00022978,7]
[348058971,1736287849331,-156.767611,0.00022978,7]
[348058972,1736287849340,-156.767611,0.00022978,7]
[348058973,1736287849350,-156.767611,0.00022978,7]
[348058974,1736287849360,-156.767611,0.00022978,7]
[348058975,1736287849370,-156.767603,0.00022978,7]
[348058976,1736287849379,-151.0,0.0002298,7]
[348058977,1736287849389,-151.0,0.0002298,7]
[348058978,1736287849398,-151.0,0.0002298,7]
[348058979,1736287849407,-151.0,0.0002298,7]
[348058980,1736287849417,-151.0,0.0002298,7]
[348058981,1736287849426,-151.0,0.0002298,7]
[348058982,1736287849439,-151.0,0.0002298,7]
[348058983,1736287849448,-151.0,0.0002298,7]
[348058984,1736287849457,-151.0,0.0002298,7]
[348058985,1736287849467,-151.0,0.0002298,7]
[348058986,1736287849476,-151.0,0.0002298,7]
[348058987,1736287849486,-151.0,0.0002298,7]
[348058988,1736287849496,-151.0,0.0002298,7]
[348058989,1736287849505,-151.0,0.0002298,7]
[348058990,1736287849514,-151.0,0.0002298,7]
[348058991,1736287849523,-277.203375,0.0002298,7]
[348058992,1736287849532,-315.219847,0.0002298,7]
[348058993,1736287849541,-315.219847,0.0002298,7]
[348058994,1736287849550,-315.219847,0.0002298,7]
[348058995,1736287849558,-315.219847,0.0002298,7]
[348058996,1736287849567,-315.219847,0.0002298,7]
[348058997,1736287849576,-315.219847,0.0002298,7]
[348058998,1736287849586,-315.219847,0.0002298,7]
[348058999,1736287849595,-315.219847,0.0002298,7]
[348059000,1736287849604,-315.219847,0.0002298,7]
[348059001,1736287849614,-315.219847,0.0002298,7]
[348059002,1736287849623,-315.219847,0.0002298,7]
[348059003,1736287849632,-315.219847,0.0002298,7]
[348059004,1736287849641,-315.219847,0.0002298,7]
[348059005,1736287849650,-315.219847,0.0002298,7]
[348059006,1736287849660,-315.219847,0.0002298,7]
[348059007,1736287849672,-315.219847,0.0002298,7]
[348059008,1736287849681,-315.219847,0.0002298,7]
[348059009,1736287849691,-315.219847,0.0002298,7]
[348059010,1736287849699,-315.219847,0.0002298,7]
[348059011,1736287849709,-315.219839,0.0002298,7]
[348059012,1736287849718,-151.0,0.0002298,2]
[348059013,1736287849727,-151.0,0.0002298,2]
[348059014,1736287849736,-151.0,0.0002298,2]
[348059015,1736287849956,-151.0,0.0002298,2]
[348059016,1736287849965,-151.0,0.0002298,2]
[348059017,1736287849975,-151.0,0.0002298,2]
[348059018,1736287849985,-151.0,0.0002298,2]
[348059019,1736287849995,-151.0,0.0002298,2]
[348059020,1736287850005,-151.0,0.0002298,2]
[348059021,1736287850015,-151.0,0.0002298,2]
[348059022,1736287850024,-151.0,0.0002298,2]
[348059023,1736287850034,-151.0,0.0002298,2]
[348059024,1736287850043,-206.825198,0.0002298,2]
[348059025,1736287850053,-151.0,0.0002298,7]
[348059026,1736287850062,-216.899155,0.0002298,7]
[348059027,1736287850071,-216.899155,0.0002298,7]
[348059028,1736287850081,-216.899155,0.0002298,7]
[348059029,1736287850091,-216.899155,0.0002298,7]
[348059030,1736287850101,-216.899155,0.0002298,7]
[348059031,1736287850111,-216.899155,0.0002298,7]
[348059032,1736287850121,-216.899155,0.0002298,7]
[348059033,1736287850130,-216.899155,0.0002298,7]
[348059034,1736287850140,-216.899155,0.0002298,7]
[348059035,1736287850149,-216.899155,0.0002298,7]
[348059036,1736287850159,-216.899155,0.0002298,7]
[348059037,1736287850168,-216.899155,0.0002298,7]
[348059038,1736287850178,-216.899155,0.0002298,7]
[348059039,1736287850187,-216.899155,0.0002298,7]
[348059040,1736287850197,-216.899155,0.0002298,7]
[348059041,1736287850207,-216.899155,0.0002298,7]
[348059042,1736287850217,-216.899155,0.0002298,7]
[348059043,1736287850226,-216.899155,0.0002298,7]
[348059044,1736287850236,-216.899155,0.0002298,7]
[348059045,1736287850246,-216.899163,0.0002298,7]
[348059046,1736287850256,-341.35881488,0.0002298,2]
[348059047,1736287850266,-173.6208182,0.0002298,2]
[348059048,1736287850277,-38159.63187236,0.00022981,3]
[348059049,1736287850286,-28803.11957445,0.00022981,3]
[348059050,1736287850295,-151.0,0.00022981,7]
[348059051,1736287850305,-1311710.51695825,0.00022981,10]
[348059052,1736287850322,-500.0,0.00022981,10]
[348059067,1736288782153,165.510453,0.00013973,2]
[348059068,1736288919190,841.96487352,0.00015,2]
[348059135,1736289032453,-301.94426944,0.000185,2]
[348059136,1736289032463,-527.50331233,0.000189,2]
[348059137,1736289032475,-180.92508292,0.0001915,2]
[348059381,1736289040416,-969.8834,0.0001915,2]
[348059670,1736289043315,-533.56000055,0.0001915,2]
[348059673,1736289043327,-2554.77270003,0.0001915,2]
[348059675,1736289043336,-163.772567,0.00019178,2]
[348059677,1736289043346,-471.75,0.000194,2]
[348059679,1736289043355,-18.73378608,0.00019451,2]
[348059681,1736289043367,-481.26621392,0.00019451,2]
[348059683,1736289043377,-106.98661534,0.00019451,3]
[348059685,1736289043389,-393.01338466,0.00019451,3]
[348059687,1736289043398,-500.0,0.00019724,3]
[348059689,1736289043407,-323.82826572,0.00019725,3]
[348059985,1736289046300,-176.17173428,0.00019725,3]
[348059987,1736289046310,-500.0,0.00019997,3]
[348059989,1736289046320,-500.0,0.00019997,3]
[348059990,1736289046329,-500.0,0.00019998,3]
[348059991,1736289046339,-500.0,0.00019999,3]
[348059992,1736289046348,-500.0,0.00020271,3]
[348059993,1736289046358,-500.0,0.00020272,3]
[348059994,1736289046368,-500.0,0.00020272,3]
[348059995,1736289046377,-500.0,0.00020273,3]
[348059996,1736289046386,-500.0,0.00020546,3]
[348059997,1736289046396,-500.0,0.00020547,3]
[348059998,1736289046405,-165.510453,0.00020807,2]
[348059999,1736289046414,-500.0,0.0002082,3]
[348060000,1736289046423,-500.0,0.00020821,3]
[348060001,1736289046433,-155.23,0.00020821,2]
[348060002,1736289046442,-500.0,0.00021073,2]
[348060003,1736289046454,-447.53716175,0.00021093,2]
[348060004,1736289046463,-238.97841235,0.00021094,2]
[348060006,1736289046473,-500.0,0.00021094,3]
[348060008,1736289046482,-500.0,0.00021094,2]
[348060010,1736289046492,-500.0,0.00021094,2]
[348060011,1736289046501,-500.0,0.00021094,2]
[348060012,1736289046510,-463.59776024,0.00021094,2]
[348060013,1736289046519,-500.0,0.00021094,2]
[348060015,1736289046529,-163.18945706,0.00021094,2]
[348060017,1736289046539,-500.0,0.00021094,2]
[348060019,1736289046548,-500.0,0.00021094,2]
[348060020,1736289046557,-500.0,0.00021094,2]
[348060021,1736289046567,-500.0,0.00021094,2]
[348060022,1736289046576,-500.0,0.00021094,2]
[348060023,1736289046586,-500.0,0.00021094,2]
[348060024,1736289046596,-500.0,0.00021094,2]
[348060025,1736289046606,-500.0,0.00021094,2]
[348060026,1736289046615,-500.0,0.00021094,2]
[348060027,1736289046625,-200.0,0.00021094,2]
[348060028,1736289046635,-620.3258835,0.00021094,2]
[348060029,1736289046645,-500.0,0.00021094,2]
[348060030,1736289046656,-500.0,0.00021094,2]
[348060031,1736289046665,-500.0,0.00021094,2]
[348060032,1736289046675,-500.0,0.00021094,2]
[348060033,1736289046685,-500.0,0.00021094,2]
[348060034,1736289046694,-500.0,0.00021094,2]
[348060035,1736289046704,-348.18897159,0.00021094,2]
[348060036,1736289046713,-500.0,0.00021094,2]
[348060037,1736289046723,-500.0,0.00021094,2]
[348060038,1736289046732,-500.0,0.00021094,2]
[348060039,1736289046742,-437.66703981,0.00021094,2]
[348060040,1736289046751,-500.0,0.00021094,2]
[348060041,1736289046760,-500.0,0.00021094,2]
[348060042,1736289046770,-241.4549855,0.00021094,2]
[348060043,1736289046780,-500.0,0.00021094,3]
[348060044,1736289046789,-123156.78,0.00021095,5]
[348060045,1736289046799,-500.0,0.00021095,3]
[348060046,1736289046808,-394.0,0.00021236,2]
[348060047,1736289046818,-214.5892987,0.00021342,2]
[348060048,1736289046827,-153.693575,0.00021342,2]
[348060049,1736289046837,-429.030012,0.00021342,2]
[348060050,1736289046847,-153.693575,0.00021342,2]
[348060051,1736289046856,-500.0,0.00021368,3]
[348060053,1736289046865,-500.0,0.00021369,3]
[348060055,1736289046874,-1000.0,0.00021621,2]
[348060056,1736289046884,-500.0,0.00021642,3]
[348060057,1736289046893,-500.0,0.00021643,3]
[348060058,1736289046903,-548.772,0.0002184,2]
[348060059,1736289046912,-500.0,0.00021916,3]
[348060060,1736289046922,-152.013,0.00021917,2]
[348060061,1736289046932,-500.0,0.00021917,3]
[348060063,1736289046941,-351.6122909,0.00021941,2]